fUST/lending_fUST_20260521
["ID","MTS","AMOUNT","RATE_DAILY","PERIOD"]
[422754591,1779364232000,-300.0,7.407e-05,2]
[422754593,1779364232000,-300.0,7.407e-05,2]
[422754606,1779364232000,-5638.91275146,7.663e-05,2]
[422754595,1779364232000,-300.0,7.407e-05,2]
[422754602,1779364232000,-515.08992271,7.662e-05,2]
[422754597,1779364232000,-300.0,7.407e-05,2]
[422754604,1779364232000,-307.47680275,7.662e-05,2]
[422754608,1779364232000,-5910.10478291,7.763e-05,2]
[422754599,1779364232000,-4829.07281347,7.463e-05,2]
[422754610,1779364232000,-112.47066124,7.763e-05,2]
[422754584,1779364232000,-300.0,7.407e-05,2]
[422754601,1779364232000,-4937.13395219,7.563e-05,2]
[422754571,1779364232000,-300.0,7.407e-05,2]
[422754558,1779364232000,-152.0,7.061e-05,7]
[422754569,1779364232000,-300.0,7.407e-05,2]
[422754614,1779364232000,-2356.96132093,7.901e-05,2]
[422754531,1779364232000,-1006.81783792,6.722e-05,2]
[422754540,1779364232000,-478.29787835,6.842e-05,2]
[422754544,1779364232000,-151.0,6.978e-05,2]
[422754536,1779364232000,-438.23496928,6.722e-05,2]
[422754542,1779364232000,-1248.56492142,6.963e-05,2]
[422754545,1779364232000,-1200.0,7.058e-05,2]
[422754538,1779364232000,-3554.9471928,6.722e-05,2]
[422754567,1779364232000,-300.0,7.407e-05,2]
[422754547,1779364232000,-300.0,7.059e-05,2]
[422754549,1779364232000,-300.0,7.059e-05,2]
[422754560,1779364232000,-2442.0675521,7.063e-05,2]
[422754554,1779364232000,-1200.0,7.06e-05,2]
[422754565,1779364232000,-300.0,7.407e-05,2]
[422754564,1779364232000,-4235.35515292,7.363e-05,2]
[422754553,1779364232000,-300.0,7.059e-05,2]
[422754562,1779364232000,-3635.57018279,7.263e-05,2]
[422754556,1779364232000,-152.0,7.061e-05,7]
[422754551,1779364232000,-300.0,7.059e-05,2]
[422754618,1779364232000,-600.0,7.917e-05,2]
[422754590,1779364232000,-300.0,7.407e-05,2]
[422754620,1779364232000,-166.76412478,8e-05,2]
[422754667,1779364232000,-709.16887637,8.218e-05,2]
[422754665,1779364232000,-709.16887637,8.218e-05,2]
[422754679,1779364232000,-500.0,8.219e-05,2]
[422754669,1779364232000,-709.16887637,8.218e-05,2]
[422754671,1779364232000,-1035.38655951,8.218e-05,2]
[422754682,1779364232000,-76.67730143,8.219e-05,2]
[422754689,1779364232000,-500.0,8.219e-05,2]
[422754672,1779364232000,-4302.78064263,8.219e-05,2]
[422754663,1779364232000,-709.16887637,8.218e-05,2]
[422754687,1779364232000,-501.26311728,8.219e-05,2]
[422754675,1779364232000,-589.20965737,8.219e-05,2]
[422754690,1779364232000,-500.0,8.219e-05,2]
[422754692,1779364232000,-502.06659132,8.219e-05,2]
[422754685,1779364232000,-424.72061967,8.219e-05,2]
[422754693,1779364232000,-500.0,8.219e-05,2]
[422754695,1779364232000,-283.19303791,8.219e-05,2]
[422754698,1779364232000,-329.05894124,8.219e-05,2]
[422754625,1779364232000,-675.39892986,8.218e-05,2]
[422754677,1779364232000,-500.0,8.219e-05,2]
[422754661,1779364232000,-709.16887637,8.218e-05,2]
[422754681,1779364232000,-501.30718118,8.219e-05,2]
[422754653,1779364232000,-709.16887637,8.218e-05,2]
[422754622,1779364232000,-675.39892986,8.218e-05,2]
[422754624,1779364232000,-675.39892986,8.218e-05,2]
[422754655,1779364232000,-709.16887637,8.218e-05,2]
[422754637,1779364232000,-675.39892986,8.218e-05,2]
[422754639,1779364232000,-675.39892986,8.218e-05,2]
[422754616,1779364232000,-3188.13444134,7.901e-05,2]
[422754627,1779364232000,-675.39892986,8.218e-05,2]
[422754631,1779364232000,-675.39892986,8.218e-05,2]
[422754629,1779364232000,-675.39892986,8.218e-05,2]
[422754633,1779364232000,-675.39892986,8.218e-05,2]
[422754635,1779364232000,-675.39892986,8.218e-05,2]
[422754643,1779364232000,-675.39892986,8.218e-05,2]
[422754697,1779364232000,-217.92913597,8.219e-05,2]
[422754647,1779364232000,-675.39892986,8.218e-05,2]
[422754645,1779364232000,-675.39892986,8.218e-05,2]
[422754649,1779364232000,-675.39892986,8.218e-05,2]
[422754651,1779364232000,-675.39892986,8.218e-05,2]
[422754659,1779364232000,-709.16887637,8.218e-05,2]
[422754657,1779364232000,-709.16887637,8.218e-05,2]
[422754641,1779364232000,-675.39892986,8.218e-05,2]
[422754719,1779364238000,-500.0,8.219e-05,2]
[422754718,1779364238000,-500.0,8.219e-05,2]
[422754717,1779364238000,-500.0,8.219e-05,2]
[422754715,1779364238000,-501.88424725,8.219e-05,2]
[422754710,1779364238000,-500.0,8.219e-05,2]
[422754712,1779364238000,-500.0,8.219e-05,2]
[422754713,1779364238000,-500.0,8.219e-05,2]
[422754708,1779364238000,-501.60028785,8.219e-05,2]
[422754711,1779364238000,-500.0,8.219e-05,2]
[422754716,1779364238000,-500.0,8.219e-05,2]
[422754707,1779364238000,-500.0,8.219e-05,2]
[422754709,1779364238000,-501.59499998,8.219e-05,2]
[422754706,1779364238000,-500.0,8.219e-05,2]
[422754705,1779364238000,-170.94105876,8.219e-05,2]
[422754728,1779364238000,-1674.08,8.219e-05,2]
[422754714,1779364238000,-500.0,8.219e-05,2]
[422754731,1779364238000,-500.0,8.219e-05,2]
[422754730,1779364238000,-500.0,8.219e-05,2]
[422754729,1779364238000,-358.10931722,8.219e-05,2]
[422754721,1779364238000,-500.0,8.219e-05,2]
[422754738,1779364238000,-500.0,8.219e-05,2]
[422754737,1779364238000,-501.74773393,8.219e-05,2]
[422754733,1779364238000,-500.0,8.219e-05,2]
[422754735,1779364238000,-648.39980519,8.219e-05,2]
[422754734,1779364238000,-500.0,8.219e-05,2]
[422754736,1779364238000,-500.0,8.219e-05,2]
[422754725,1779364238000,-501.57994855,8.219e-05,2]
[422754739,1779364238000,-66.41900095,8.219e-05,2]
[422754720,1779364238000,-500.0,8.219e-05,2]
[422754724,1779364238000,-500.0,8.219e-05,2]
[422754722,1779364238000,-500.0,8.219e-05,2]
[422754727,1779364238000,-501.35082466,8.219e-05,2]
[422754732,1779364238000,-500.0,8.219e-05,2]
[422754723,1779364238000,-501.80184869,8.219e-05,2]
[422754726,1779364238000,-623.60612776,8.219e-05,2]
[422754745,1779364240000,-181.80435044,8.219e-05,2]
[422754744,1779364240000,-221.01231574,8.219e-05,2]
[422754742,1779364240000,-333.58099905,8.219e-05,2]
[422754743,1779364240000,-500.0,8.219e-05,2]
[422754770,1779364243000,-500.0,8.219e-05,2]
[422754767,1779364243000,-500.0,8.219e-05,2]
[422754772,1779364243000,-500.0,8.219e-05,2]
[422754766,1779364243000,-197.130996,8.219e-05,2]
[422754765,1779364243000,-500.0,8.219e-05,2]
[422754764,1779364243000,-500.0,8.219e-05,2]
[422754762,1779364243000,-500.0,8.219e-05,2]
[422754768,1779364243000,-500.0,8.219e-05,2]
[422754763,1779364243000,-180.70422375,8.219e-05,2]
[422754760,1779364243000,-500.0,8.219e-05,2]
[422754758,1779364243000,-500.0,8.219e-05,2]
[422754771,1779364243000,-500.0,8.219e-05,2]
[422754759,1779364243000,-500.0,8.219e-05,2]
[422754752,1779364243000,-500.0,8.219e-05,2]
[422754757,1779364243000,-622.13,8.219e-05,2]
[422754756,1779364243000,-500.0,8.219e-05,2]
[422754755,1779364243000,-380.19648951,8.219e-05,2]
[422754754,1779364243000,-500.0,8.219e-05,2]
[422754753,1779364243000,-500.0,8.219e-05,2]
[422754751,1779364243000,-466.71292035,8.219e-05,2]
[422754769,1779364243000,-409.36083676,8.219e-05,2]
[422754761,1779364243000,-940.86,8.219e-05,2]
[422754785,1779364243000,-500.0,8.219e-05,2]
[422754792,1779364243000,-500.0,8.219e-05,2]
[422754777,1779364243000,-500.0,8.219e-05,2]
[422754780,1779364243000,-500.0,8.219e-05,2]
[422754795,1779364243000,-500.0,8.219e-05,2]
[422754796,1779364243000,-565.18865846,8.219e-05,2]
[422754798,1779364243000,-500.0,8.219e-05,2]
[422754789,1779364243000,-500.0,8.219e-05,2]
[422754787,1779364243000,-500.0,8.219e-05,2]
[422754797,1779364243000,-604.37665121,8.219e-05,2]
[422754790,1779364243000,-169.42905729,8.219e-05,2]
[422754791,1779364243000,-500.0,8.219e-05,2]
[422754786,1779364243000,-624.77,8.219e-05,2]
[422754788,1779364243000,-500.0,8.219e-05,2]
[422754794,1779364243000,-500.0,8.219e-05,2]
[422754776,1779364243000,-500.0,8.219e-05,2]
[422754793,1779364243000,-500.0,8.219e-05,2]
[422754773,1779364243000,-500.0,8.219e-05,2]
[422754775,1779364243000,-500.0,8.219e-05,2]
[422754783,1779364243000,-500.0,8.219e-05,2]
[422754779,1779364243000,-500.0,8.219e-05,2]
[422754778,1779364243000,-500.0,8.219e-05,2]
[422754784,1779364243000,-500.0,8.219e-05,2]
[422754781,1779364243000,-500.0,8.219e-05,2]
[422754782,1779364243000,-501.88626111,8.219e-05,2]
[422754774,1779364243000,-500.0,8.219e-05,2]
[422754808,1779364244000,-500.0,8.219e-05,2]
[422754806,1779364244000,-500.0,8.219e-05,2]
[422754809,1779364244000,-7042.47035001,8.223e-05,2]
[422754810,1779364244000,-300.0,8.382e-05,2]
[422754802,1779364244000,-500.0,8.219e-05,2]
[422754803,1779364244000,-500.0,8.219e-05,2]
[422754799,1779364244000,-500.0,8.219e-05,2]
[422754811,1779364244000,-300.0,8.382e-05,2]
[422754801,1779364244000,-500.0,8.219e-05,2]
[422754804,1779364244000,-500.0,8.219e-05,2]
[422754807,1779364244000,-500.0,8.219e-05,2]
[422754800,1779364244000,-507.97671057,8.219e-05,2]
[422754817,1779364244000,-500.0,8.493e-05,2]
[422754805,1779364244000,-500.0,8.219e-05,2]
[422754814,1779364244000,-940.86,8.493e-05,2]
[422754825,1779364244000,-612.11,8.493e-05,2]
[422754819,1779364244000,-448.67,8.493e-05,2]
[422754827,1779364244000,-160.0,8.574e-05,2]
[422754830,1779364244000,-910.54265112,8.767e-05,2]
[422754829,1779364244000,-151.0,8.709e-05,2]
[422754828,1779364244000,-161.7158655,8.574e-05,2]
[422754824,1779364244000,-500.0,8.493e-05,2]
[422754812,1779364244000,-300.0,8.382e-05,2]
[422754822,1779364244000,-618.34,8.493e-05,2]
[422754826,1779364244000,-288.11,8.493e-05,2]
[422754820,1779364244000,-500.0,8.493e-05,2]
[422754821,1779364244000,-500.0,8.493e-05,2]
[422754815,1779364244000,-500.0,8.493e-05,2]
[422754813,1779364244000,-1674.08,8.493e-05,2]
[422754816,1779364244000,-340.47,8.493e-05,2]
[422754818,1779364244000,-601.39,8.493e-05,2]
[422754823,1779364244000,-500.0,8.493e-05,2]
[422754840,1779364247000,-300.0,8.382e-05,2]
[422754839,1779364247000,-300.0,8.382e-05,2]
[422754842,1779364247000,-300.0,8.382e-05,2]
[422754841,1779364247000,-300.0,8.382e-05,2]
[422754847,1779364247000,-357.04,8.767e-05,2]
[422754846,1779364247000,-940.86,8.767e-05,2]
[422754844,1779364247000,-300.0,8.382e-05,2]
[422754848,1779364247000,-564.39149645,8.842e-05,2]
[422754849,1779364247000,-1866.37783127,8.868e-05,2]
[422754845,1779364247000,-763.53734888,8.767e-05,2]
[422754843,1779364247000,-300.0,8.382e-05,2]
[422754861,1779365159000,190.67190771,0.00017808,120]
[422754878,1779365345000,-300.0,6.726e-05,2]
[422754876,1779365345000,-300.0,6.726e-05,2]
[422754875,1779365345000,-300.0,6.726e-05,2]
[422754877,1779365345000,-300.0,6.726e-05,2]
[422754874,1779365345000,-300.0,6.726e-05,2]
[422754870,1779365345000,-162.13,6.595e-05,2]
[422754872,1779365345000,-1200.0,6.725e-05,2]
[422754881,1779365345000,-300.0,6.726e-05,2]
[422754868,1779365345000,-5000.0,6.463e-05,2]
[422754869,1779365345000,-471.29356658,6.562e-05,2]
[422754873,1779365345000,-300.0,6.725e-05,2]
[422754879,1779365345000,-300.0,6.726e-05,2]
[422754871,1779365345000,-441.4529596,6.662e-05,2]
[422754883,1779365345000,-300.0,6.726e-05,2]
[422754894,1779365345000,-11240.54488941,7.562e-05,2]
[422754891,1779365345000,-505.0,7.398e-05,2]
[422754893,1779365345000,-808.12648161,7.561e-05,2]
[422754889,1779365345000,-600.0,6.86e-05,2]
[422754888,1779365345000,-300.0,6.726e-05,2]
[422754892,1779365345000,-720.0,7.545e-05,2]
[422754886,1779365345000,-300.0,6.726e-05,2]
[422754887,1779365345000,-300.0,6.726e-05,2]
[422754885,1779365345000,-300.0,6.726e-05,2]
[422754884,1779365345000,-300.0,6.726e-05,2]
[422754882,1779365345000,-300.0,6.726e-05,2]
[422754890,1779365345000,-152.0,7.064e-05,7]
[422754880,1779365345000,-300.0,6.726e-05,2]
[422754899,1779365365000,-500.0,7.561e-05,2]
[422754895,1779365365000,-5000.0,7.486e-05,2]
[422754896,1779365365000,-500.0,7.561e-05,2]
[422754897,1779365365000,-500.0,7.561e-05,2]
[422754898,1779365365000,-500.0,7.561e-05,2]
[422754900,1779365365000,-500.0,7.561e-05,2]
[422754901,1779365365000,-500.0,7.561e-05,2]
[422754904,1779365365000,-500.0,7.561e-05,2]
[422754902,1779365365000,-489.75124228,7.561e-05,2]
[422754907,1779365365000,-500.0,7.561e-05,2]
[422754908,1779365365000,-373.38294474,7.561e-05,2]
[422754906,1779365365000,-500.0,7.561e-05,2]
[422754905,1779365365000,-500.0,7.561e-05,2]
[422754903,1779365365000,-500.0,7.561e-05,2]
[422754942,1779365432000,-959.34061829,7.485e-05,2]
[422754941,1779365432000,-1117.43519046,7.485e-05,2]
[422754935,1779365432000,-859.11990399,7.485e-05,2]
[422754938,1779365432000,-715.38749328,7.485e-05,2]
[422755035,1779365438000,-500.0,7.561e-05,2]
[422755042,1779365438000,-500.0,7.561e-05,2]
[422755044,1779365438000,-500.0,7.561e-05,2]
[422755038,1779365438000,-500.0,7.561e-05,2]
[422755040,1779365438000,-500.0,7.561e-05,2]
[422755031,1779365438000,-500.0,7.561e-05,2]
[422755037,1779365438000,-500.0,7.561e-05,2]
[422755033,1779365438000,-500.0,7.561e-05,2]
[422755046,1779365438000,-500.0,7.561e-05,2]
[422755029,1779365438000,-500.0,7.561e-05,2]
[422755025,1779365438000,-500.0,7.561e-05,2]
[422755021,1779365438000,-500.0,7.561e-05,2]
[422755023,1779365438000,-500.0,7.561e-05,2]
[422755019,1779365438000,-500.0,7.561e-05,2]
[422755017,1779365438000,-126.61705526,7.561e-05,2]
[422755015,1779365438000,-357.98975776,7.485e-05,2]
[422754989,1779365438000,-990.72703622,7.485e-05,2]
[422755048,1779365438000,-416.61171433,7.561e-05,2]
[422755027,1779365438000,-500.0,7.561e-05,2]
[422755050,1779365438000,-500.0,7.561e-05,2]
[422755073,1779365438000,-500.0,7.561e-05,2]
[422755052,1779365438000,-500.0,7.561e-05,2]
[422755092,1779365438000,-800.0452168,7.561e-05,2]
[422755090,1779365438000,-800.0452168,7.561e-05,2]
[422755091,1779365438000,-800.0452168,7.561e-05,2]
[422755089,1779365438000,-800.0452168,7.561e-05,2]
[422755088,1779365438000,-800.0452168,7.561e-05,2]
[422755083,1779365438000,-285.42468144,7.561e-05,2]
[422755079,1779365438000,-500.0,7.561e-05,2]
[422755081,1779365438000,-500.0,7.561e-05,2]
[422755086,1779365438000,-800.0452168,7.561e-05,2]
[422755077,1779365438000,-500.0,7.561e-05,2]
[422755071,1779365438000,-500.0,7.561e-05,2]
[422755054,1779365438000,-500.0,7.561e-05,2]
[422755065,1779365438000,-500.0,7.561e-05,2]
[422755067,1779365438000,-500.0,7.561e-05,2]
[422755063,1779365438000,-500.0,7.561e-05,2]
[422755093,1779365438000,-800.0452168,7.561e-05,2]
[422755075,1779365438000,-500.0,7.561e-05,2]
[422755069,1779365438000,-500.0,7.561e-05,2]
[422755061,1779365438000,-500.0,7.561e-05,2]
[422755095,1779365439000,-800.0452168,7.561e-05,2]
[422755094,1779365439000,-800.0452168,7.561e-05,2]
[422755102,1779365439000,-800.0452168,7.561e-05,2]
[422755097,1779365439000,-800.0452168,7.561e-05,2]
[422755096,1779365439000,-800.0452168,7.561e-05,2]
[422755101,1779365439000,-800.0452168,7.561e-05,2]
[422755100,1779365439000,-800.0452168,7.561e-05,2]
[422755098,1779365439000,-800.0452168,7.561e-05,2]
[422755099,1779365439000,-800.0452168,7.561e-05,2]
[422755104,1779365439000,-840.04747764,7.561e-05,2]
[422755106,1779365439000,-17047.30435745,7.562e-05,2]
[422755107,1779365439000,-5675.56544906,7.562e-05,2]
[422755105,1779365439000,-840.04747764,7.561e-05,2]
[422755108,1779365439000,-67885.97396018,7.562e-05,2]
[422755109,1779365439000,-3528.57304545,7.562e-05,2]
[422755110,1779365439000,-249.91034384,7.562e-05,2]
[422755103,1779365439000,-840.04747764,7.561e-05,2]
[422755121,1779365440000,-840.04747764,7.561e-05,2]
[422755122,1779365440000,-840.04747764,7.561e-05,2]
[422755120,1779365440000,-840.04747764,7.561e-05,2]
[422755124,1779365440000,-840.04747764,7.561e-05,2]
[422755125,1779365440000,-548.91726906,7.562e-05,2]
[422755123,1779365440000,-840.04747764,7.561e-05,2]
[422755131,1779365441000,-300.0,7.711e-05,2]
[422755138,1779365441000,-249.79834245,7.711e-05,2]
[422755135,1779365441000,-8.75759413,7.711e-05,2]
[422755130,1779365441000,-300.0,7.711e-05,2]
[422755128,1779365441000,-300.0,7.711e-05,2]
[422755126,1779365441000,-300.0,7.711e-05,2]
[422755134,1779365441000,-300.0,7.711e-05,2]
[422755140,1779365441000,-300.0,7.711e-05,2]
[422755132,1779365441000,-300.0,7.711e-05,2]
[422755127,1779365441000,-300.0,7.711e-05,2]
[422755136,1779365441000,-291.24240587,7.711e-05,2]
[422755133,1779365441000,-300.0,7.711e-05,2]
[422755148,1779365441000,-166.76412478,8.025e-05,2]
[422755129,1779365441000,-300.0,7.711e-05,2]
[422755139,1779365441000,-300.0,7.711e-05,2]
[422755141,1779365441000,-300.0,7.711e-05,2]
[422755145,1779365441000,-180.70422373,7.711e-05,2]
[422755143,1779365441000,-250.54982265,7.711e-05,2]
[422755142,1779365441000,-300.0,7.711e-05,2]
[422755147,1779365441000,-163.48251496,8.024e-05,2]
[422755146,1779365441000,-163.48251496,7.784e-05,2]
[422755144,1779365441000,-349.45017735,7.711e-05,2]
[422755149,1779365441000,-323.4129914,8.189e-05,2]
[422755150,1779365441000,-151.9315249,8.189e-05,2]
[422755153,1779365441000,-367.54940538,8.219e-05,2]
[422755152,1779365441000,-225.31,8.219e-05,2]
[422755151,1779365441000,-151.0,8.189e-05,2]
[422755137,1779365441000,-50.20165755,7.711e-05,2]
[422755166,1779365443000,-322.5140649,8.219e-05,2]
[422755167,1779365443000,-1212.7459351,8.219e-05,2]
[422755165,1779365443000,-132.45059462,8.219e-05,2]
[422755170,1779365443000,-500.26024829,8.219e-05,2]
[422755169,1779365443000,-212.95780002,8.219e-05,2]
[422755168,1779365443000,-287.76317974,8.219e-05,2]
[422755178,1779365444000,-500.0,8.219e-05,2]
[422755191,1779365444000,-500.0,8.219e-05,2]
[422755176,1779365444000,-193.99080754,8.219e-05,2]
[422755180,1779365444000,-823.25,8.219e-05,2]
[422755174,1779365444000,-140.19043113,8.219e-05,2]
[422755187,1779365444000,-500.0,8.219e-05,2]
[422755188,1779365444000,-500.0,8.219e-05,2]
[422755190,1779365444000,-500.0,8.219e-05,2]
[422755171,1779365444000,-150.94172056,8.219e-05,2]
[422755182,1779365444000,-500.0,8.219e-05,2]
[422755192,1779365444000,-500.0,8.219e-05,2]
[422755185,1779365444000,-500.0,8.219e-05,2]
[422755186,1779365444000,-500.0,8.219e-05,2]
[422755184,1779365444000,-500.0,8.219e-05,2]
[422755172,1779365444000,-500.0,8.219e-05,2]
[422755189,1779365444000,-598.74,8.219e-05,2]
[422755194,1779365444000,-500.0,8.219e-05,2]
[422755211,1779365444000,-237.78172106,8.562e-05,2]
[422755204,1779365444000,-2160.3635922,8.409e-05,2]
[422755193,1779365444000,-500.0,8.219e-05,2]
[422755207,1779365444000,-1535.26,8.493e-05,2]
[422755208,1779365444000,-823.25,8.493e-05,2]
[422755209,1779365444000,-305.45,8.493e-05,2]
[422755210,1779365444000,-571.74,8.493e-05,2]
[422755205,1779365444000,-500.0,8.409e-05,2]
[422755202,1779365444000,-591.96372483,8.219e-05,2]
[422755206,1779365444000,-720.0,8.482e-05,2]
[422755199,1779365444000,-500.0,8.219e-05,2]
[422755197,1779365444000,-517.37808836,8.219e-05,2]
[422755201,1779365444000,-394.64248322,8.219e-05,2]
[422755198,1779365444000,-500.0,8.219e-05,2]
[422755196,1779365444000,-500.0,8.219e-05,2]
[422755203,1779365444000,-300.0000001,8.409e-05,2]
[422755200,1779365444000,-197.32124161,8.219e-05,2]
[422755195,1779365444000,-500.0,8.219e-05,2]
[422755241,1779365447000,-2031.94997799,8.868e-05,2]
[422755236,1779365447000,-161.7158655,8.598e-05,2]
[422755235,1779365447000,-318.3446875,8.562e-05,2]
[422755237,1779365447000,-160.0,8.598e-05,2]
[422755240,1779365447000,-823.25,8.767e-05,2]
[422755238,1779365447000,-151.0,8.767e-05,2]
[422755242,1779365447000,-3845.92134003,8.868e-05,2]
[422755245,1779365447000,-352.66527637,8.942e-05,2]
[422755244,1779365447000,-500.0,8.942e-05,2]
[422755243,1779365447000,-500.0,8.942e-05,2]
[422755246,1779365447000,-1308.43330582,9e-05,7]
[422755239,1779365447000,-1535.26,8.767e-05,2]
[422755249,1779365699000,331.12,0.00017808,120]
[422755259,1779366406000,-208.71062792,7.19e-05,2]
[422755260,1779366449000,-479.39781852,7.118e-05,2]
[422755276,1779366632000,-888.34205459,6.977e-05,2]
[422755284,1779366638000,-387.42692005,6.977e-05,2]
[422755285,1779366638000,-1072.97832471,6.977e-05,2]
[422755298,1779366641000,-300.0,7.296e-05,2]
[422755293,1779366641000,-300.0,7.296e-05,2]
[422755297,1779366641000,-300.0,7.296e-05,2]
[422755300,1779366641000,-300.0,7.296e-05,2]
[422755294,1779366641000,-300.0,7.296e-05,2]
[422755289,1779366641000,-450.74516708,7.154e-05,2]
[422755292,1779366641000,-300.0,7.296e-05,2]
[422755291,1779366641000,-300.0,7.296e-05,2]
[422755290,1779366641000,-300.0,7.296e-05,2]
[422755287,1779366641000,-2651.25270065,6.977e-05,2]
[422755288,1779366641000,-4791.28937208,7.047e-05,2]
[422755296,1779366641000,-300.0,7.296e-05,2]
[422755295,1779366641000,-300.0,7.296e-05,2]
[422755302,1779366641000,-300.0,7.296e-05,2]
[422755299,1779366641000,-300.0,7.296e-05,2]
[422755303,1779366641000,-300.0,7.296e-05,2]
[422755305,1779366641000,-151.0,8.185e-05,2]
[422755312,1779366641000,-500.0,8.498e-05,2]
[422755306,1779366641000,-151.0,8.185e-05,2]
[422755313,1779366641000,-160.0,8.591e-05,2]
[422755310,1779366641000,-147.07874593,8.411e-05,2]
[422755307,1779366641000,-456.5585624,8.185e-05,2]
[422755311,1779366641000,-379.11123169,8.411e-05,2]
[422755314,1779366641000,-161.7158655,8.591e-05,2]
[422755316,1779366641000,-635.61268235,9e-05,7]
[422755304,1779366641000,-300.0,7.296e-05,2]
[422755315,1779366641000,-418.45256105,8.63e-05,2]
[422755301,1779366641000,-300.0,7.296e-05,2]
[422755309,1779366641000,-263.09498881,8.219e-05,2]
[422755308,1779366641000,-151.0,8.185e-05,2]
[422755317,1779366641000,-141.17287829,9e-05,7]
[422755323,1779366644000,-23.19006977,9e-05,7]
[422755335,1779366647000,-53.26642428,9e-05,7]
[422755337,1779366647000,-1927.775,9e-05,7]
[422755336,1779366647000,-4766.65176439,9e-05,7]
[422755338,1779366781000,9937.21217801,0.00017808,120]
[422755340,1779366860000,151.0,0.00017808,120]
[422755343,1779366886000,151.0,0.00017808,120]
[422755348,1779366933000,-235.47163758,0.00013689,60]
[422755349,1779366933000,-264.0,0.00013689,60]
[422755346,1779366933000,-99.39750869,0.00013689,60]
[422755347,1779366933000,-114.52836242,0.00013689,60]
[422755345,1779366933000,-250.60249131,0.00013689,60]
[422755344,1779366933000,-269.10992707,0.00013689,60]
[422755351,1779367168000,159.608317,4.046e-05,2]
[422755411,1779367832000,-976.25152329,7.842e-05,2]
[422755409,1779367832000,-605.52935036,7.842e-05,2]
[422755453,1779367839000,-500.0,8.865e-05,2]
[422755447,1779367839000,-608.19541792,8.865e-05,2]
[422755444,1779367839000,-500.0,8.865e-05,2]
[422755451,1779367839000,-500.0,8.865e-05,2]
[422755454,1779367839000,-502.98556569,8.865e-05,2]
[422755456,1779367839000,-252.25601205,8.865e-05,2]
[422755457,1779367839000,-500.0,8.865e-05,2]
[422755458,1779367839000,-500.0,8.865e-05,2]
[422755459,1779367839000,-500.0,8.865e-05,2]
[422755460,1779367839000,-500.0,8.865e-05,2]
[422755461,1779367839000,-1994.71780137,8.866e-05,2]
[422755466,1779367839000,-500.0,8.937e-05,2]
[422755463,1779367839000,-502.23219048,8.937e-05,2]
[422755455,1779367839000,-500.0,8.865e-05,2]
[422755464,1779367839000,-500.0,8.937e-05,2]
[422755462,1779367839000,-474.58660579,8.866e-05,2]
[422755468,1779367839000,-500.0,8.937e-05,2]
[422755478,1779367839000,-270.87063139,8.937e-05,2]
[422755479,1779367839000,-379.45535758,8.937e-05,2]
[422755467,1779367839000,-500.0,8.937e-05,2]
[422755469,1779367839000,-500.0,8.937e-05,2]
[422755470,1779367839000,-500.0,8.937e-05,2]
[422755477,1779367839000,-500.0,8.937e-05,2]
[422755473,1779367839000,-500.0,8.937e-05,2]
[422755472,1779367839000,-500.0,8.937e-05,2]
[422755465,1779367839000,-477.34114189,8.937e-05,2]
[422755445,1779367839000,-500.0,8.865e-05,2]
[422755471,1779367839000,-500.0,8.937e-05,2]
[422755443,1779367839000,-500.0,8.865e-05,2]
[422755421,1779367839000,-3418.21912635,7.842e-05,2]
[422755426,1779367839000,-2470.80910649,8.423e-05,2]
[422755424,1779367839000,-450.74516708,8.042e-05,2]
[422755422,1779367839000,-4791.28937208,7.921e-05,2]
[422755423,1779367839000,-300.0,8.041e-05,2]
[422755425,1779367839000,-410.17373474,8.422e-05,2]
[422755427,1779367839000,-500.0,8.498e-05,2]
[422755428,1779367839000,-520.27154527,8.498e-05,2]
[422755430,1779367839000,-500.0,8.498e-05,2]
[422755433,1779367839000,-160.0,8.591e-05,2]
[422755432,1779367839000,-1152.35448789,8.566e-05,2]
[422755431,1779367839000,-500.0,8.498e-05,2]
[422755448,1779367839000,-500.0,8.865e-05,2]
[422755438,1779367839000,-500.0,8.865e-05,2]
[422755436,1779367839000,-2297.86049436,8.766e-05,2]
[422755429,1779367839000,-500.0,8.498e-05,2]
[422755435,1779367839000,-2235.76889219,8.666e-05,2]
[422755439,1779367839000,-152.09017721,8.865e-05,2]